Cogmind - Beta 13 @@@ ROGUE MODE // 2024.05.13 @ 22:47:50 Player: ThatBishHoly Result: Destroyed by Y-45 Defender with Heavy Assault Rifle Performance ------------- Evolutions (1) 500 Regions Visited (3) 600 Robots Destroyed (47) 235 Value Destroyed (1305) 1305 Prototype IDs (4) 80 Alien Tech Used (0) 0 Bonus (27) 27 TOTAL SCORE: 2747 Bonus ------- High Alert Combat Kills 27 Cogmind --------- Core Integrity 0/400 Matter 148/300 Energy 4/265 System Corruption 2% Temperature Cool (27) Movement Flying (197) Ox2 Location -9/Storage Parts ------- > --- POWER (1) -------- Improved Ion Engine > --- PROPULSION (4) --- Flight Unit Flight Unit > --- UTILITY (2) ------ Medium Storage Unit > --- WEAPON (2) ------- Heavy EM Pulse Gun Heavy EM Pulse Gun > --- INVENTORY (10) --- Aluminum Leg Aluminum Leg Improved Heat Sink Power Shielding Improved Assault Rifle Rocket Launcher Peak State ------------ > --- POWER ------------ Deuterium Engine > --- PROPULSION ------- Airjet Airjet Airjet Airjet > --- UTILITY ---------- Medium Storage Unit Signal Interpreter > --- WEAPON ----------- Heavy EM Pulse Gun Heavy EM Pulse Gun > --- INVENTORY -------- Deuterium Engine Improved Heat Sink Power Shielding Heavy EM Pulse Gun Heavy EM Pulse Gun Particle Gun Flak Cannon Flak Cannon Flak Cannon [Rating: 23] Favorites ----------- Power Deuterium Engine Engine Deuterium Engine Power Core Light Nuclear Core Propulsion Flight Unit Treads Light Treads Leg Aluminum Leg Wheel Wheel Hover Unit Airjet Flight Unit Flight Unit Utility Medium Storage Unit Storage Medium Storage Unit Processor Signal Interpreter Weapon Flak Cannon Energy Gun Heavy EM Pulse Gun Energy Cannon Advanced Beam Cannon Ballistic Gun Light Assault Rifle Ballistic Cannon Flak Cannon Build | -11 -10 -9 -9 ------- Run | Yrd Mat Mat Sto Slots Evolved 2 | . . 2 . Power . | . . . . Propulsion 2 | . . 2 . Utility . | . . . . Weapon . | . . . . Parts Attached 53 | 7 20 7 19 Power 8 | 1 4 1 2 Engine 6 | 1 2 1 2 Core 2 | . 2 . . Reactor . | . . . . Propulsion 24 | 4 6 6 8 Treads 4 | 2 2 . . Leg 3 | . . . 3 Wheel 7 | 2 4 1 . Hover 5 | . . 5 . Flight 5 | . . . 5 Utility 3 | . 3 . . Device . | . . . . Storage 2 | . 2 . . Processor 1 | . 1 . . Hackware . | . . . . Protection . | . . . . Artifact . | . . . . Weapon 18 | 2 7 . 9 Energy Gun 5 | . 3 . 2 Energy Cannon 2 | . . . 2 Ballistic Gun 6 | 2 3 . 1 Ballistic Cannon 5 | . 1 . 4 Launcher . | . . . . Special Weapon . | . . . . Impact Weapon . | . . . . Slashing Weapon . | . . . . Piercing Weapon . | . . . . Special Melee Weapon . | . . . . Unidentified Prototypes 2 | . . . 2 Parts Lost 16 | . 3 1 12 Power 3 | . 1 . 2 Propulsion 8 | . 1 1 6 Utility 1 | . . . 1 Weapon 4 | . 1 . 3 Highest Loss Streak 4 | . 3 1 4 To Critical Strikes 1 | . . . 1 Average Slot Usage (%) 73 | . 87 84 57 Engine 6 | . 8 5 6 Core 2 | . 3 5 . Treads 4 | . 14 . . Leg 1 | . . . 3 Wheel 5 | . 7 11 . Hover 5 | . . 17 2 Flight 5 | . . . 11 Storage 11 | . 13 11 11 Processor 6 | . 10 11 2 Energy Gun 5 | . 2 22 . Ballistic Gun 7 | . 23 . . Ballistic Cannon 10 | . 1 . 21 Naked Turns . | . . . . Heaviest Build 31 | 7 21 25 31 Greatest Support 40 | 40 40 32 20 Greatest Overweight (x) 7 | . 1 2 7 Average Overweight (x) 1 | . . . 2 Largest Inventory Capacity 10 | 5 10 10 10 Average Capacity 8 | 5 6 10 10 Most Carried 10 | 2 9 10 10 Average Carried 5 | . 2 7 7 Final Capacity 10 | 5 10 10 10 Final Carried 10 | . 6 10 6 Class Distribution -------------------- 94% | Mutant 5% | Scavenger-Mutant Dominant Class ---------------- Mutant | -10/Materials Mutant | -9/Materials Mutant | -9/Storage Resources | -11 -10 -9 -9 ----------- Run | Yrd Mat Mat Sto Matter Collected 1115 | 221 361 65 468 Remotely . | . . . . Salvage Created 1367 | . 401 301 665 Parts 85 | . 26 13 46 Haulers Intercepted 2 | . 1 . 1 Recyclers Shooed . | . . . . Parts Field Recycled . | . . . . Retrieved Matter . | . . . . Parts Self-Destructed . | . . . . Prevented . | . . . . Kills | -11 -10 -9 -9 ------- Run | Yrd Mat Mat Sto Combat Hostiles Destroyed 39 | . 8 8 23 Guns 11 | . 5 6 . Cannons 26 | . 3 . 23 AOE 2 | . . 2 . Classes Destroyed 7 | . 4 2 1 Worker 3 | . 1 . 2 Hauler 2 | . 1 . 1 Recycler 1 | . . . 1 Watcher 2 | . 1 . 1 Swarmer 9 | . . 3 6 Grunt 22 | . 8 4 10 Sentry 8 | . . 1 7 Best Kill Streak 9 | . 5 4 9 Combat Bots Only 8 | . 4 4 8 Max Kills in Single Turn 3 | . 2 2 3 Gunslinging 1 | . . 1 . Exploded 2 | . . 2 . Melee . | . . . . Uniques/NPCs Destroyed . | . . . . Combat | -11 -10 -9 -9 -------- Run | Yrd Mat Mat Sto Hostile Shots Fired 290 | . 72 42 176 Missed 92 | . 25 14 53 Damage Taken 2410 | . 594 310 1506 Core 592 | . 184 73 335 Absorbed by Shields . | . . . . Regen/Repaired (Parts) 25 | . . 25 . Core Remaining (%) 63 | 100 26 . . Volleys Fired 100 | . 29 23 48 Largest 2 | . 2 2 2 Hottest 100 | . 100 90 90 Shots Fired 187 | . 56 46 85 Gun 93 | . 45 46 2 Cannon 94 | . 11 . 83 Launcher . | . . . . Special . | . . . . Kinetic 135 | . 52 . 83 Thermal 2 | . 2 . . Explosive . | . . . . Electromagnetic 50 | . 2 46 2 Robot Hit Streak 12 | . 6 11 12 Robot Miss Streak 10 | . 2 3 10 Penetration Max . | . . . . Secondary Targets 2 | . 1 1 . Max Gunslinging Chain 1 | . 1 1 . Shots Hit Robots 143 | . 42 25 76 Core Hits 112 | . 18 11 83 Critical Kills . | . . . . Critical Parts Destroyed . | . . . . Critical Strikes 2 | . . 2 . Corrupt 2 | . . 2 . Melee Attacks . | . . . . Impact . | . . . . Slashing . | . . . . Piercing . | . . . . Sneak Attacks . | . . . . Combat Hostiles . | . . . . Follow-up Attacks . | . . . . Damage Inflicted 2407 | . 588 498 1321 Guns 866 | . 445 395 26 Cannons 1436 | . 143 . 1293 Explosions 102 | . . 102 . Melee . | . . . . Ramming 3 | . . 1 2 Kinetic 1832 | . 539 . 1293 Thermal 119 | . 17 102 . Explosive . | . . . . Electromagnetic 453 | . 32 395 26 Impact . | . . . . Slashing . | . . . . Piercing . | . . . . Highest Corruption 2 | . . . 2 Average Corruption 2 | . . . 2 Corruption Purged . | . . . . Corruption Blocked . | . . . . Effects 3 | . . . 3 Message Errors 1 | . . . 1 Matter Fused 1 | . . . 1 Data Loss (minor) 1 | . . . 1 Overload Shots . | . . . . Overflow Damage . | . . . . Projectiles . | . . . . Explosions . | . . . . Melee . | . . . . Knockbacks 32 | . 1 . 31 Impact . | . . . . Kinetic 29 | . 1 . 28 Secondary 3 | . . . 3 Self-Inflicted Damage . | . . . . Shots . | . . . . Rammed 3 | . 1 1 1 Targets Rammed 5 | . 1 1 3 Kicked 2 | . . . 2 Crushed . | . . . . Highest Temperature 405 | . 123 405 144 Average Temperature 81 | . 42 139 50 Received Heat Transfer 951 | . 327 99 525 Effects 1 | . . 1 . Short Circuit 1 | . . 1 . Siege Activations . | . . . . Robots Corrupted . | . . . . Combat Hostiles . | . . . . Parts Fried 1 | . . 1 . Impact Corruptions . | . . . . Robots Melted . | . . . . Combat Hostiles . | . . . . Parts Melted . | . . . . Heat Transferred 187 | . 37 150 . Parts Sabotaged . | . . . . Parts Stolen . | . . . . Parts Stripped . | . . . . Power Chain Reactions 2 | . . 2 . Alert | -11 -10 -9 -9 ------- Run | Yrd Mat Mat Sto Peak Influence 432 | . 187 349 432 Initial 78 | . . 78 68 Average 173 | . 50 165 284 Maximum Alert Level 2 | . . 1 2 Low Security (%) 55 | 100 100 70 11 Level 1 41 | . . 29 80 Level 2 3 | . . . 7 Level 3 . | . . . . Level 4 . | . . . . Level 5 . | . . . . High Security . | . . . . Max Security . | . . . . Squads Dispatched 7 | . 1 2 4 Investigation 3 | . . 1 2 Extermination . | . . . . Reinforcement 3 | . 1 1 1 Assault . | . . . . Garrison 1 | . . . 1 Intercept . | . . . . Searches Triggered . | . . . . Construction Impeded . | . . . . Haulers Reinforced . | . . . . Active Scanning Responses . | . . . . Cargo Convoy Interrupts . | . . . . Stealth | -11 -10 -9 -9 --------- Run | Yrd Mat Mat Sto Distress Signals 3 | . . 1 2 Communications Jammed . | . . . . Distress Signals . | . . . . Times Spotted 57 | . 10 13 34 Peak Tracking Total 6 | . 4 5 6 Tactical Retreats 2 | . . . 2 Traps | -11 -10 -9 -9 ------- Run | Yrd Mat Mat Sto Traps Triggered 5 | . 4 . 1 Indirectly . | . . . . Trap Hack Attempts . | . . . . Triggered . | . . . . Disarmed . | . . . . Reprogrammed . | . . . . Reused . | . . . . Traps Extracted . | . . . . Installed . | . . . . Triggered . | . . . . Machines | -11 -10 -9 -9 ---------- Run | Yrd Mat Mat Sto Machines Disabled 1 | . . 1 . Max in Single Turn 1 | . . 1 . Machines Repaired . | . . . . Machines Dismantled . | . . . . Machines Sabotaged . | . . . . Overloaded Fab Kills . | . . . . Hacking | -11 -10 -9 -9 --------- Run | Yrd Mat Mat Sto Machines Accessed 7 | . 2 2 3 Terminals 6 | . 2 1 3 Fabricators . | . . . . Repair Stations 1 | . . 1 . Recycling Units . | . . . . Scanalyzers . | . . . . Garrison Access . | . . . . Total Hacks 18 | . 5 5 8 Successful 7 | . 3 4 . Failed 11 | . 2 1 8 Catastrophic . | . . . . Database Lockouts . | . . . . Manual . | . . . . Terminals 14 | . 5 1 8 Fabricators . | . . . . Repair Stations 4 | . . 4 . Recycling Units . | . . . . Scanalyzers . | . . . . Garrison Access . | . . . . Terminal Hacks 3 | . 3 . . Prototype ID Bank 1 | . 1 . . Branch Access Points 1 | . 1 . . Locate Traps 1 | . 1 . . Fabricator Hacks . | . . . . Repair Station Hacks 4 | . . 4 . Scan Component 3 | . . 3 . Repair 1 | . . 1 . Recycling Unit Hacks . | . . . . Scanalyzer . | . . . . Garrison Access Hacks . | . . . . Unauthorized Hacks . | . . . . Terminals . | . . . . Fabricators . | . . . . Repair Stations . | . . . . Recycling Units . | . . . . Scanalyzers . | . . . . Garrison Access . | . . . . Data Cores Recovered . | . . . . Used . | . . . . Hacking Detections 7 | . 2 2 3 Full Trace Events 3 | . 1 1 1 Feedback Events . | . . . . Feedback Blocked . | . . . . Robot Schematics Acquired . | . . . . Robots Built . | . . . . Authchips . | . . . . Time . | . . . . Total Robot Build Rating . | . . . . Part Schematics Acquired . | . . . . Parts Built . | . . . . Authchips . | . . . . Time . | . . . . Total Part Build Rating . | . . . . Parts Repaired 1 | . . 1 . Time 38 | . . 38 . Parts Recycled . | . . . . Recycled Matter . | . . . . Retrieved Matter . | . . . . Retrieved Components . | . . . . Parts Scanalyzed . | . . . . Part Schematics Acquired . | . . . . Parts Damaged . | . . . . Bothacking | -11 -10 -9 -9 ------------ Run | Yrd Mat Mat Sto Used RIF Installer . | . . . . Robots Hacked . | . . . . Non-combat . | . . . . Combat . | . . . . Robot Hacks Applied . | . . . . Relay Couplers Released . | . . . . Fabnet Peak Effective % . | . . . . Robots Rewired . | . . . . Allies Hacked . | . . . . Hacks Repelled . | . . . . Allies | -11 -10 -9 -9 -------- Run | Yrd Mat Mat Sto Total Allies . | . . . . Largest Group . | . . . . Highest-Rated Group . | . . . . Highest-Rated Ally . | . . . . Total Orders . | . . . . Ally Attacks . | . . . . Total Damage . | . . . . Kills . | . . . . Allies Corrupted . | . . . . Allies Melted . | . . . . Intel | -11 -10 -9 -9 ------- Run | Yrd Mat Mat Sto Robot Analysis Total . | . . . . Derelict Logs Recovered . | . . . . Drone Launches . | . . . . Drone Recoveries . | . . . . Exploration | -11 -10 -9 -9 ------------- Run | Yrd Mat Mat Sto Turns Passed 2228 | 123 675 462 968 Spaces Moved 1074 | 78 377 279 340 Core 48 | 5 5 . 38 Treads 309 | 59 250 . . Legs 54 | . . . 54 Wheels 307 | 14 122 171 . Hover 178 | . . 108 70 Flight 178 | . . . 178 Fastest Speed 48 | 50 80 48 111 Average Speed 156 | 140 134 96 232 Slowest Speed 440 | 160 160 126 440 Overloaded Moves . | . . . . Propulsion Burnouts . | . . . . Robots Hopped . | . . . . Cave-ins Triggered . | . . . . Exploration Rate (%) 28 | 4 51 20 40 Regions Visited 3 Branch Regions 1 Pre-discovered Areas . | . . . . Known Exits Taken 2 | . 1 1 . Unknown Exits Taken 1 | 1 . . . Scrap Searched . | . . . . Spaces Dug . | . . . . Terrain Destroyed 6 | . . 6 . Melee . | . . . . Projectile . | . . . . AOE 6 | . . 6 . Terrain Rammed . | . . . . Walls Destroyed . | . . . . Machines Disabled . | . . . . Actions | -11 -10 -9 -9 --------- Run | Yrd Mat Mat Sto Total 1443 | 93 492 427 431 Wait 137 | . 34 103 . Move 1071 | 77 376 278 340 Hop . | . . . . Pick Up 54 | 7 24 10 13 Fast Attach 5 | . 2 1 2 Attach 36 | 7 11 5 13 Detach . | . . . . Swap 12 | . 7 1 4 Drop 23 | 2 8 5 8 Fire 100 | . 29 23 48 Melee . | . . . . Ram 2 | . . 1 1 Kick 2 | . . . 2 Crush 1 | . 1 . . Escape Stasis . | . . . . Rewire . | . . . . Trap . | . . . . Miscellaneous . | . . . . Route ------- -11/Scrapyard -10/Materials (discovered 2 exits: *Mat / *Min) -9/Materials -9/Storage History --------- Turn | Location | Event 16 | -11/Scrapyard | Discovered new exit (range 16) 124 | -11/Scrapyard | Entered Materials 140 | -10/Materials | Identified exit to Mines 309 | -10/Materials | Build established: Mutant 694 | -10/Materials | Core integrity fell below 50% 732 | -10/Materials | Lost 3 parts (1p1n1w) 796 | -10/Materials | Discovered new exit (range 4) 798 | -10/Materials | Identified exit to Materials 799 | -10/Materials | Entered another Materials area 799 | -9/Materials | Evolved 2 slots: Propulsion x2 1119 | -9/Materials | Repaired Airjet 1241 | -9/Materials | Discovered new exit (range 16) 1260 | -9/Materials | Identified exit to Storage 1261 | -9/Materials | Entered Storage 1409 | -9/Storage | Destroyed 8 combat bots 1419 | -9/Storage | Lost 3 parts (1p2n) 1431 | -9/Storage | Core integrity fell below 50% 1512 | -9/Storage | Lost 4 parts (1n1u2w) 1987 | -9/Storage | Core integrity fell below 20% 2229 | -9/Storage | Destroyed by Y-45 Defender with Heavy Assault Rifle Last Messages --------------- 02047_ Acquired 27 matter. 02050_ K-01 Serf collects debris. 02052_ Acquired Aluminum Leg. 02053_ K-01 Serf collects debris. 02059_ Acquired Aluminum Leg. 02060_ K-01 Serf collects debris. 02069_ R-06 Scavenger collects Ion Engine. 02072_ K-01 Serf collects debris. 02073_ R-06 Scavenger collects Heat Sink. 02075_ K-01 Serf cleans the Storage Shell. 02135_ System corrupted: Matter fused (-5). 02211_ Y-45 Defender emerges from the garrison. 02211_ Flak Cannon destroyed. 02213_ Y-45 Defender destroyed. 02216_ Deuterium Engine destroyed. 02217_ Y-45 Defender destroyed. 02219_ Identified Imp. Assault Rifle. 02223_ Dropped Flak Cannon. 02227_ Acquired Imp. Ion Engine. 02229_ Critical hit (Burn: +37). Map ----- +----------------------------------------------------+ | ???????????????# """ """ # *## " | | ??????????????## """ """ # ## " | | ??????????????# """ """ # ## " | | ???????????????# + !## | | ???????????????# #% *## | | ???????????????# # ![## | | ???????????????# #![ #??? | | ?????????????###+###########% ]##?? | | ?????????????# #??????#* ]]]### | | ?????????????# #??????# =[! | | ?????????????# #??????# | | ?????????????# #??????# ! | | ?????????????# #??????# ### | | ?????????????## ##??????#######?? | | ?############## #????????######## | | # """"" """"" # #????????# * | | # """"" """"" # #?????????# | | # """"" """"" + #?????????# | | # # #?????????# | | # = # #?????????# """ " | | # = # #?????????# """ " | | ?############## #??#"##???# """ " | | ???# ## ##?# T#???# | | ???# ] # ###+#######+##+# | | ???# * ! # | | ???# =[@= Y m | | ???# *%"%" # % | | ???# ]!!"G" # ####+#########+# | | ???# !| " ## ##?## #?# | | ??# ## #??#T #?# | | ??############# #??##"""##?# """" | | ??????????????# #??????????# ???" | | ??????????????# #??????????# ???? | | ??????????????+ #??????????# "??? | | ????????????? # #??????????# "?? | | ????????????? # #??????????# "" | | ????????????#?# #??????????# | | ??????????????# #??????????###### | | ?????????????? ???????????????? | | ?????????????? ???????????????? | | ??????????????? ????????????????? | | ??????????????????????????????????? | | ??????????????????????????????????? | | ??????????????????????????????????? | | ??????????????????????????????????? | | ??????????????????????????????????? | | ??????????????????????????????????? | | ??????????????????????????????????? | | ??????????????????????????????????? | | ??????????????????????????????????? | +----------------------------------------------------+ Best States ------------- Heat Dissipation 28 Energy Generation 14 Energy Capacity 275 Matter Stores 300 Matter Capacity 500 Sight Range 16 Terrain Scan Density 10 Evasion (%) 51 Recoil Reduction 2 Item Schematics ----------------- None Robot Schematics ------------------ None Fabricated ------------ Nothing Alien Tech Used ----------------- None Achievements -------------- More Dakka Please Challenges ------------ None Game ------ Seed XenonMetaMallet Manual? 0 Play Time 00:24:04 Cumulative 20.8 hours Start 2024.05.12 @ 20:42:31 End 2024.05.13 @ 22:47:50 Sessions 3 Manual Loads 0 Difficulty Rogue Special Mode None Game No. 63 Rogue 63 Adventurer 0 Explorer 0 Win Type - Total 0 Types 0/0/0/0/0/0/0/0/0 Lore% 13 Gallery% 30 Achievement% 22 Wizard Run 0 Options --------- Layout 1 ASCII 0 Keyboard 0 Movement Arrows Keybinds 0 Fullscreen 1 Font 16/SmallcapsGlow Map View 25x20 Zoom Use 99% Tactical HUD 1 Map Filters NONE Filters NONE Steam SD RUN: 398a8943-b69b-4457-beee-c6d9003d7cf2